fUSD/lending_fUSD_20251213
["ID","MTS","AMOUNT","RATE_DAILY","PERIOD"]
[398434589,1765651839492,-150.0,0.00017671,2]
[398434590,1765651839501,-150.0,0.00017671,2]
[398434591,1765651839510,-150.0,0.00017671,2]
[398434592,1765651839519,-150.0,0.00017671,2]
[398434593,1765651839528,-291.0,0.00017676,2]
[398434594,1765651839538,-8384.05738018,0.0001768,2]
[398434595,1765651839547,-4769.51333208,0.000177,2]
[398434596,1765651839556,-985.17479863,0.000177,2]
[398434597,1765651839566,-8384.05738017,0.00017704,2]
[398434598,1765651839575,-4769.51333201,0.00017722,2]
[398434599,1765651839584,-8384.05738017,0.00017729,2]
[398434600,1765651839594,-4769.51333201,0.00017744,2]
[398434601,1765651839603,-464.55863353,0.00017752,2]
[398434602,1765651839612,-8384.05738017,0.00017753,2]
[398434603,1765651839621,-168.0,0.00017767,2]
[398434604,1765651839631,-4769.51333201,0.00017767,2]
[398434605,1765651839640,-8384.05738017,0.00017778,2]
[398434606,1765651839649,-4769.51333201,0.00017789,2]
[398434607,1765651839658,-646.44,0.00017798,2]
[398434608,1765651839667,-500.0,0.00017798,2]
[398434609,1765651839676,-200.0,0.000178,2]
[398434610,1765651839686,-2039.39610426,0.000178,2]
[398434611,1765651839695,-514728.46615364,0.000178,2]
[398434612,1765651839709,-32000.0,0.000178,2]
[398434613,1765651839979,-443.58598797,0.000178,2]
[398434614,1765651839991,-801.50537532,0.000178,2]
[398434615,1765651840002,-108081.77264505,0.000178,2]
[398434618,1765651840033,-279.7588134,0.000178,2]
[398434620,1765651840045,-1353.45,0.000178,2]
[398434623,1765651840060,-444.64251,0.000178,2]
[398434686,1765651842821,-2096.49764382,0.00017314,2]
[398434687,1765651842832,-2699.50235618,0.00017314,2]
[398434688,1765651842841,-12435.59351405,0.000178,2]
[398434689,1765651842874,-7264.32680853,0.000178,2]
[398434690,1765651842886,-82166.89819204,0.000178,2]
[398434691,1765651842896,-241.9192873,0.000178,2]
[398434692,1765651842907,-985.17479861,0.000178,2]
[398434693,1765651842916,-8384.05738017,0.00017802,2]
[398434694,1765651842926,-500.0,0.00017808,2]
[398434695,1765651842936,-253.60065798,0.00017808,2]
[398434696,1765651842946,-600.0,0.00017808,2]
[398434697,1765651842956,-150.0,0.00017808,2]
[398434698,1765651842965,-200.0,0.00017808,2]
[398434699,1765651842975,-500.0,0.00017808,2]
[398434700,1765651842984,-500.0,0.00017808,2]
[398434701,1765651842994,-150.0,0.00017808,2]
[398434702,1765651843003,-500.0,0.00017808,2]
[398434703,1765651843013,-150.0,0.00017808,2]
[398434704,1765651843023,-150.0,0.00017808,2]
[398434705,1765651843031,-150.0,0.00017808,2]
[398434706,1765651843041,-500.0,0.00017808,2]
[398434707,1765651843050,-150.0,0.00017808,2]
[398434708,1765651843059,-4769.51333201,0.00017811,2]
[398434709,1765651843069,-241.91928725,0.00017817,2]
[398434710,1765651843078,-151.48293313,0.0001782,2]
[398434711,1765651843087,-8384.05738017,0.00017827,2]
[398434712,1765651843096,-241.91928725,0.00017833,2]
[398434713,1765651843106,-4769.51333201,0.00017833,2]
[398434714,1765651843115,-241.91928725,0.0001785,2]
[398434715,1765651843124,-8384.05738017,0.00017851,2]
[398434716,1765651843133,-4769.51333201,0.00017856,2]
[398434717,1765651843142,-151.48293313,0.0001786,2]
[398434718,1765651843151,-241.91928725,0.00017867,2]
[398434719,1765651843161,-8384.05738017,0.00017876,2]
[398434720,1765651843169,-4769.51333201,0.00017878,2]
[398434721,1765651843178,-241.91928725,0.00017883,2]
[398434722,1765651843187,-168.0,0.00017889,2]
[398434723,1765651843197,-1000.0,0.00017895,2]
[398434724,1765651843207,-1000.0,0.00017897,2]
[398434725,1765651843216,-7354.0,0.000179,2]
[398434726,1765651843226,-10000.0,0.000179,2]
[398434727,1765651843235,-241.91928725,0.000179,2]
[398434728,1765651843243,-8384.05738017,0.000179,2]
[398434729,1765651843253,-151.48293313,0.000179,2]
[398434730,1765651843262,-233.05803626,0.000179,2]
[398434731,1765651843271,-4769.51333201,0.000179,2]
[398434732,1765651843281,-219.64304449,0.000179,2]
[398434733,1765651843290,-1012.8401734,0.000179,2]
[398434734,1765651843299,-985.17479861,0.000179,2]
[398434735,1765651843308,-1000.0,0.0001791,2]
[398434736,1765651843317,-500.0,0.00017945,2]
[398434737,1765651843327,-200.0,0.00017945,2]
[398434738,1765651843336,-500.0,0.00017945,2]
[398434739,1765651843345,-150.0,0.00017945,2]
[398434740,1765651843354,-500.0,0.00017945,2]
[398434741,1765651843363,-200.0,0.00017945,2]
[398434742,1765651843372,-500.0,0.00017945,2]
[398434743,1765651843381,-206.48269393,0.00017945,2]
[398434744,1765651843391,-215.4333116,0.00017945,2]
[398434745,1765651843400,-150.0,0.00017945,2]
[398434746,1765651843409,-500.0,0.00017973,2]
[398434747,1765651843418,-500.0,0.00017973,2]
[398434748,1765651843427,-500.0,0.00017973,2]
[398434749,1765651843437,-500.0,0.00017973,2]
[398434750,1765651843446,-500.0,0.00017973,2]
[398434751,1765651843456,-500.0,0.00017973,2]
[398434752,1765651843465,-500.0,0.00017973,2]
[398434753,1765651843474,-500.0,0.00017973,2]
[398434754,1765651843484,-487.26788281,0.00017973,2]
[398434755,1765651843494,-500.0,0.00017973,2]
[398434756,1765651843503,-503.84405186,0.00017973,2]
[398434757,1765651843513,-500.0,0.00017973,2]
[398434758,1765651843522,-500.0,0.00017973,2]
[398434759,1765651843531,-500.0,0.00017973,2]
[398434760,1765651843540,-504.18794098,0.00017973,2]
[398434761,1765651843550,-500.0,0.00017973,2]
[398434762,1765651843560,-500.0,0.00017973,2]
[398434763,1765651843569,-500.0,0.00017973,2]
[398434764,1765651843579,-500.0,0.00017973,2]
[398434765,1765651843588,-496.76934978,0.00017973,2]
[398434766,1765651843598,-500.0,0.00017973,2]
[398434767,1765651843607,-505.36759797,0.00017973,2]
[398434768,1765651843616,-500.0,0.00017973,2]
[398434769,1765651843626,-500.0,0.00017973,2]
[398434770,1765651843635,-500.0,0.00017973,2]
[398434771,1765651843644,-500.0,0.00017973,2]
[398434772,1765651843653,-500.0,0.00017973,2]
[398434773,1765651843663,-500.0,0.00017973,2]
[398434774,1765651843671,-500.0,0.00017973,2]
[398434775,1765651843681,-615.22169004,0.00017973,2]
[398434776,1765651843690,-500.0,0.00017973,2]
[398434777,1765651843699,-500.0,0.00017973,2]
[398434778,1765651843708,-500.0,0.00017973,2]
[398434779,1765651843717,-500.0,0.00017973,2]
[398434780,1765651843726,-500.0,0.00017973,2]
[398434781,1765651843736,-500.0,0.00017973,2]
[398434782,1765651843745,-500.0,0.00017973,2]
[398434783,1765651843754,-329.0889974,0.00017973,2]
[398434784,1765651843764,-150.0,0.00017973,2]
[398434785,1765651843773,-152.0,0.00017975,2]
[398434786,1765651843782,-152.0,0.00017975,2]
[398434787,1765651843792,-152.0,0.00017975,2]
[398434788,1765651843801,-152.0,0.00017975,2]
[398434789,1765651843810,-151.16701834,0.00017975,2]
[398434790,1765651843820,-152.0,0.00017975,2]
[398434791,1765651843829,-152.0,0.00017975,2]
[398434792,1765651843838,-152.0,0.00017975,2]
[398434793,1765651843848,-152.0,0.00017975,2]
[398434794,1765651843858,-152.0,0.00017975,2]
[398434795,1765651843867,-157.0,0.00017975,2]
[398434796,1765651843877,-152.0,0.00017975,2]
[398434797,1765651843886,-152.0,0.00017975,2]
[398434798,1765651843895,-157.0,0.00017975,2]
[398434799,1765651843905,-152.0,0.00017975,2]
[398434800,1765651843914,-157.0,0.00017975,2]
[398434801,1765651843924,-153.0,0.00017975,2]
[398434802,1765651843933,-152.0,0.00017975,2]
[398434803,1765651843942,-157.0,0.00017975,2]
[398434804,1765651843951,-153.0,0.00017975,2]
[398434805,1765651843960,-157.0,0.00017975,2]
[398434806,1765651843970,-152.0,0.00017975,2]
[398434807,1765651843979,-153.0,0.00017975,2]
[398434808,1765651843989,-152.0,0.00017975,2]
[398434809,1765651843998,-153.0,0.00017975,2]
[398434810,1765651844007,-152.0,0.00017975,2]
[398434811,1765651844021,-153.0,0.00017975,2]
[398434812,1765651844031,-152.0,0.00017975,2]
[398434813,1765651844040,-153.0,0.00017975,2]
[398434814,1765651844050,-152.0,0.00017975,2]
[398434815,1765651844060,-153.0,0.00017975,2]
[398434816,1765651844069,-152.0,0.00017975,2]
[398434817,1765651844079,-153.0,0.00017975,2]
[398434818,1765651844088,-152.0,0.00017975,2]
[398434819,1765651844097,-153.0,0.00017975,2]
[398434820,1765651844107,-152.0,0.00017975,2]
[398434821,1765651844116,-153.0,0.00017975,2]
[398434822,1765651844125,-152.0,0.00017975,2]
[398434823,1765651844134,-153.0,0.00017975,2]
[398434824,1765651844143,-152.0,0.00017975,2]
[398434825,1765651844152,-153.0,0.00017975,2]
[398434826,1765651844161,-152.0,0.00017975,2]
[398434827,1765651844171,-212.60063327,0.00017975,2]
[398434828,1765651844180,-152.0,0.00017975,2]
[398434829,1765651844190,-152.0,0.00017975,2]
[398434830,1765651844199,-152.0,0.00017975,2]
[398434831,1765651844209,-152.0,0.00017975,2]
[398434832,1765651844218,-152.0,0.00017975,2]
[398434833,1765651844227,-152.0,0.00017975,2]
[398434834,1765651844237,-152.0,0.00017975,2]
[398434835,1765651844247,-152.0,0.00017975,2]
[398434836,1765651844256,-152.0,0.00017975,2]
[398434837,1765651844565,-152.0,0.00017975,2]
[398434838,1765651844577,-152.0,0.00017975,2]
[398434839,1765651844588,-152.0,0.00017975,2]
[398434840,1765651844599,-152.0,0.00017975,2]
[398434841,1765651844609,-152.0,0.00017975,2]
[398434842,1765651844620,-152.0,0.00017975,2]
[398434843,1765651844630,-152.0,0.00017975,2]
[398434844,1765651844642,-152.0,0.00017975,2]
[398434845,1765651844652,-152.0,0.00017975,2]
[398434846,1765651844664,-152.0,0.00017975,2]
[398434847,1765651844675,-233.3764448,0.00017975,2]
[398434848,1765651844687,-152.0,0.00017975,2]
[398434849,1765651844698,-152.0,0.00017975,2]
[398434850,1765651844708,-152.0,0.00017975,2]
[398434851,1765651844718,-152.0,0.00017975,2]
[398434852,1765651844728,-152.0,0.00017975,2]
[398434853,1765651844740,-152.0,0.00017975,2]
[398434854,1765651844751,-152.0,0.00017975,2]
[398434855,1765651844760,-152.0,0.00017975,2]
[398434856,1765651844770,-152.0,0.00017975,2]
[398434857,1765651844779,-244.85337538,0.00017975,2]
[398434858,1765651844789,-196.93257167,0.00017987,2]
[398434859,1765651844800,-196.93257167,0.0001799,2]
[398434860,1765651844810,-199464.7462553,0.00017997,2]
[398434861,1765651844821,-927.9329245,0.00017997,2]
[398434862,1765651844831,-412.6140257,0.00017997,2]
[398434863,1765651844842,-267.36392203,0.00018,2]
[398434864,1765651844854,-150.00000001,0.00018,2]
[398434865,1765651844873,-264.24246333,0.00018,2]
[398434866,1765651844887,-187.07956536,0.00018,2]
[398434867,1765651844897,-150.0,0.00018,2]
[398434868,1765651844907,-150.0,0.00018,2]
[398434869,1765651844917,-150.0,0.00018,2]
[398434870,1765651844927,-450432.48691573,0.00018,2]
[398434871,1765651844936,-52545.87741398,0.00018,2]
[398434889,1765651846718,-164.22,0.0001779,2]
[398434890,1765651846728,-164.22,0.0001779,2]
[398434891,1765651846737,-6471.59870326,0.000179,2]
[398434892,1765651846753,-3528.40129674,0.000179,2]
[398434893,1765651846762,-164.22,0.0001799,2]
[398434894,1765651846771,-164.22,0.0001799,2]
[398434895,1765651846780,-328174.90522197,0.00018,2]
[398434896,1765651846791,-521.50544742,0.00018,2]
[398434897,1765651846803,-817306.35744775,0.00018,2]
[398434898,1765651846813,-1587.635991,0.00018,2]
[398434899,1765651846824,-540.52,0.00018,2]
[398434900,1765651846835,-33774.7135452,0.00018,2]
[398434901,1765651846846,-4363.76389369,0.00018,2]
[398434904,1765652098920,167.33,8.388e-05,2]
[398434905,1765652099121,167.33,8.829e-05,2]
[398434906,1765652099327,167.33,9.271e-05,2]
[398434907,1765652099597,167.33,9.712e-05,2]
[398434908,1765652099814,167.33,0.00010154,2]
[398434909,1765652100045,167.33,0.00010595,2]
[398434910,1765652100267,167.33,0.00011036,2]
[398434911,1765652100447,167.33,0.00011478,2]
[398434912,1765652100667,167.33,0.00011919,2]
[398434913,1765652100867,167.33,0.00012361,2]
[398434914,1765652101078,167.33,0.00012802,2]
[398434915,1765652101479,167.33,0.00013244,2]
[398434916,1765652101698,167.33,0.00013685,2]
[398434917,1765652101909,167.33,0.00014127,2]
[398434918,1765652102328,167.33,0.00014568,2]
[398434919,1765652102758,167.33,0.00015009,2]
[398434920,1765652105557,167.33,0.00015451,2]
[398434921,1765652106525,150.0,0.000217,30]
[398434922,1765652108172,163.69257281,0.0001926,30]
[398434931,1765652901891,913.03,0.00015736,2]
[398434932,1765652929677,500.0,0.00015742,2]
[398434933,1765652935461,999.0,0.00015728,3]
[398434942,1765653031735,-283.0,0.00015892,2]
[398434944,1765653031745,-308.89042449,0.00015892,2]
[398434946,1765653031755,-195.0,0.00015892,2]
[398434948,1765653031764,-358.14430451,0.00015892,2]
[398434950,1765653031774,-167.33,0.00015892,2]
[398434952,1765653031783,-300.0,0.00015984,2]
[398434953,1765653031792,-674.53863151,0.00015984,2]
[398434954,1765653031892,-525.46136849,0.00015984,2]
[398434955,1765653031903,-300.0,0.00015984,2]
[398434956,1765653031913,-1301.91850658,0.00015985,2]
[398434957,1765653031924,-250.0,0.00015985,2]
[398434958,1765653031947,-5432.06149342,0.00015985,2]
[398434960,1765653031956,-150.0,0.000162,2]
[398434963,1765653031969,-150.0,0.000162,2]
[398434965,1765653031979,-150.0,0.000162,2]
[398434966,1765653031989,-150.0,0.000162,2]
[398434967,1765653031999,-150.0,0.000162,2]
[398434970,1765653032008,-150.0,0.000162,2]
[398434973,1765653032018,-150.0,0.000162,2]
[398434976,1765653032027,-167.33,0.00016334,2]
[398434979,1765653032036,-152.17,0.00016393,2]
[398434982,1765653032047,-152.32,0.00016393,2]
[398434985,1765653032056,-802.40723931,0.00016438,2]
[398434988,1765653032066,-150.0,0.000165,2]
[398434990,1765653032075,-150.0,0.000165,2]
[398434993,1765653032084,-150.0,0.0001656,2]
[398434996,1765653032094,-154.69529058,0.00016586,2]
[398434998,1765653032103,-167.14674989,0.00016625,2]
[398435001,1765653032113,-1039.60385665,0.00016665,2]
[398435004,1765653032122,-151.0,0.00016683,2]
[398435006,1765653032131,-550.0,0.00016684,2]
[398435008,1765653032141,-519.27470897,0.00016685,2]
[398435010,1765653032152,-500.0,0.00016685,2]
[398435012,1765653032162,-152.35478075,0.00016685,2]
[398435013,1765653032172,-500.0,0.00016685,2]
[398435014,1765653032181,-500.0,0.00016685,2]
[398435015,1765653032190,-152.36985521,0.00016685,2]
[398435016,1765653032199,-500.0,0.00016685,2]
[398435017,1765653032208,-500.0,0.00016685,2]
[398435018,1765653032218,-498.67009352,0.00016685,2]
[398435019,1765653032228,-500.0,0.00016685,2]
[398435020,1765653032238,-500.0,0.00016685,2]
[398435021,1765653032247,-500.0,0.00016685,2]
[398435022,1765653032257,-500.0,0.00016685,2]
[398435023,1765653032266,-500.0,0.00016685,2]
[398435024,1765653032277,-500.0,0.00016685,2]
[398435025,1765653032286,-500.0,0.00016685,2]
[398435026,1765653032296,-500.0,0.00016685,2]
[398435027,1765653032306,-500.0,0.00016685,2]
[398435028,1765653032315,-500.0,0.00016685,2]
[398435029,1765653032325,-500.0,0.00016685,2]
[398435030,1765653032335,-313.70663222,0.00016685,2]
[398435031,1765653032345,-500.0,0.00016685,2]
[398435032,1765653032358,-500.0,0.00016685,2]
[398435033,1765653032367,-500.0,0.00016685,2]
[398435034,1765653032377,-500.0,0.00016685,2]
[398435035,1765653032387,-500.0,0.00016685,2]
[398435036,1765653032398,-500.0,0.00016685,2]
[398435037,1765653032408,-500.0,0.00016685,2]
[398435038,1765653032417,-500.0,0.00016685,2]
[398435039,1765653032428,-500.0,0.00016685,2]
[398435040,1765653032438,-500.0,0.00016685,2]
[398435041,1765653032448,-500.0,0.00016685,2]
[398435042,1765653032457,-500.0,0.00016685,2]
[398435043,1765653032467,-500.0,0.00016685,2]
[398435044,1765653032476,-500.0,0.00016685,2]
[398435045,1765653032486,-500.0,0.00016685,2]
[398435046,1765653032495,-500.0,0.00016685,2]
[398435047,1765653032505,-500.0,0.00016685,2]
[398435048,1765653032515,-500.0,0.00016685,2]
[398435049,1765653032526,-500.0,0.00016685,2]
[398435050,1765653032536,-443.79293205,0.00016685,2]
[398435051,1765653032558,-56.20706795,0.00016685,2]
[398435052,1765653032570,-500.0,0.00016685,2]
[398435053,1765653032581,-500.0,0.00016685,2]
[398435054,1765653032591,-600.0,0.00016685,2]
[398435055,1765653032601,-500.0,0.00016685,2]
[398435056,1765653032611,-500.0,0.00016685,2]
[398435057,1765653032620,-328.39159955,0.00016686,2]
[398435058,1765653032630,-34227.15770357,0.00016686,2]
[398435059,1765653032643,-9377.23173969,0.00016686,2]
[398435068,1765653037902,-328.93344363,0.000161,2]
[398435069,1765653037912,-179776.81547287,0.00016686,2]
[398435070,1765653037923,-161091.63940282,0.00016686,2]
[398435071,1765653037935,-628.70076921,0.00016686,2]
[398435072,1765653037955,-3379.8,0.00016686,2]
[398435073,1765653038017,-371518.65491184,0.00016686,2]
[398435074,1765653038032,-897.5754,0.00016686,2]
[398435075,1765653038041,-500.0,0.00016686,2]
[398435076,1765653038051,-353.0,0.00016725,2]
[398435077,1765653038062,-407.40074106,0.00016751,2]
[398435078,1765653038071,-167.33,0.00016775,2]
[398435079,1765653038081,-915.22,0.00016785,2]
[398435080,1765653038090,-88266.5608,0.00016786,2]
[398435081,1765653038099,-983.605,0.00016786,2]
[398435082,1765653038108,-589.6468,0.00016786,2]
[398435083,1765653038118,-150.0,0.000168,2]
[398435084,1765653038127,-150.0,0.000168,2]
[398435086,1765653038137,-250.0,0.00016815,2]
[398435087,1765653038147,-2875.74679566,0.0001682,2]
[398435089,1765653038156,-151.0,0.00016856,2]
[398435091,1765653038166,-500.0,0.00016866,2]
[398435093,1765653038175,-161.20872846,0.00016866,2]
[398435096,1765653038185,-151.0,0.00016866,2]
[398435098,1765653038194,-151.0,0.00016866,2]
[398435101,1765653038212,-151.0,0.00016866,2]
[398435104,1765653038231,-151.0,0.00016866,2]
[398435107,1765653038251,-151.0,0.00016866,2]
[398435110,1765653038271,-151.0,0.00016866,2]
[398435113,1765653038286,-151.0,0.00016866,2]
[398435116,1765653038306,-151.0,0.00016866,2]
[398435119,1765653038328,-151.0,0.00016866,2]
[398435122,1765653038348,-151.0,0.00016866,2]
[398435123,1765653038369,-151.0,0.00016866,2]
[398435124,1765653038389,-151.0,0.00016866,2]
[398435125,1765653038409,-151.0,0.00016866,2]
[398435126,1765653038425,-151.0,0.00016866,2]
[398435127,1765653038446,-151.0,0.00016866,2]
[398435128,1765653038460,-151.0,0.00016866,2]
[398435129,1765653038479,-200.0,0.00016866,2]
[398435130,1765653038493,-500.0,0.00016866,2]
[398435131,1765653038515,-500.0,0.00016866,2]
[398435132,1765653038530,-209.1215884,0.00016866,2]
[398435133,1765653038545,-500.0,0.00016866,2]
[398435134,1765653038561,-500.0,0.00016866,2]
[398435135,1765653038577,-500.0,0.00016866,2]
[398435136,1765653038593,-500.0,0.00016866,2]
[398435137,1765653038611,-200.0,0.00016866,2]
[398435139,1765653038627,-452.42388811,0.00016886,2]
[398435141,1765653038644,-300.24817944,0.00016886,2]
[398435144,1765653038661,-500.0,0.00016886,2]
[398435146,1765653038676,-509.71163218,0.00016886,2]
[398435149,1765653038693,-150.0,0.0001692,2]
[398435152,1765653038708,-2875.74679559,0.0001694,2]
[398435154,1765653038723,-300.0,0.00016959,2]
[398435157,1765653038740,-1000.0,0.00016959,2]
[398435159,1765653038757,-151.0,0.00016959,2]
[398435162,1765653038775,-1000.0,0.00016959,2]
[398435165,1765653038791,-1000.0,0.00016959,2]
[398435167,1765653038806,-1000.0,0.00016959,2]
[398435170,1765653038822,-1000.0,0.00016959,2]
[398435172,1765653038838,-1000.0,0.00016959,2]
[398435175,1765653038854,-1000.0,0.00016959,2]
[398435177,1765653038872,-1000.0,0.00016959,2]
[398435180,1765653038889,-1000.0,0.00016959,2]
[398435182,1765653038905,-1000.0,0.00016959,2]
[398435185,1765653038921,-1000.0,0.00016959,2]
[398435186,1765653038937,-300.0,0.00016959,2]
[398435187,1765653038953,-995.0,0.00016959,2]
[398435188,1765653038968,-816.0,0.00016959,2]
[398435189,1765653038985,-500.0,0.0001696,2]
[398435190,1765653039002,-154.69529053,0.00016972,2]
[398435191,1765653039018,-500.0,0.00016973,2]
[398435192,1765653039035,-528.65048037,0.00016973,2]
[398435193,1765653039053,-500.0,0.00016973,2]
[398435194,1765653039070,-250.0,0.00017,2]
[398435195,1765653039088,-995.0,0.00017014,2]
[398435196,1765653039103,-915.22,0.00017059,2]
[398435197,1765653039120,-2875.74679559,0.0001706,2]
[398435198,1765653039136,-481.04173315,0.00017066,2]
[398435199,1765653039152,-995.0,0.00017069,2]
[398435200,1765653039168,-4796.0,0.00017088,2]
[398435201,1765653039184,-6520.0,0.00017088,2]
[398435202,1765653039201,-2426.0,0.00017088,2]
[398435203,1765653039218,-150.0,0.000171,2]
[398435204,1765653039234,-150.0,0.000171,2]
[398435205,1765653039251,-995.0,0.00017124,2]
[398435206,1765653039268,-995.0,0.00017179,2]
[398435207,1765653039285,-2875.74679559,0.0001718,2]
[398435208,1765653039302,-995.0,0.00017234,2]
[398435209,1765653039318,-500.0,0.00017234,2]
[398435210,1765653039334,-150.0,0.0001728,2]
[398435211,1765653039350,-995.0,0.00017289,2]
[398435212,1765653039368,-328.39159954,0.00017293,2]
[398435213,1765653039382,-2875.74679559,0.000173,2]
[398435214,1765653039399,-238.73,0.0001731,2]
[398435215,1765653039414,-150.0,0.00017314,2]
[398435216,1765653039429,-176.632,0.00017314,2]
[398435217,1765653039446,-150.0,0.00017314,2]
[398435218,1765653039462,-1606.0,0.00017314,2]
[398435219,1765653039477,-611.0,0.00017314,2]
[398435220,1765653039493,-1324.0,0.00017314,2]
[398435221,1765653039508,-3450.0,0.00017314,2]
[398435222,1765653039523,-1261.0,0.00017314,2]
[398435223,1765653039538,-642.0,0.00017314,2]
[398435224,1765653039553,-910.0,0.00017314,2]
[398435225,1765653039568,-1196.0,0.00017314,2]
[398435226,1765653039583,-915.22,0.00017333,2]
[398435227,1765653039599,-154.69529053,0.00017357,2]
[398435228,1765653039614,-150.0,0.000174,2]
[398435229,1765653039629,-150.0,0.000174,2]
[398435230,1765653039644,-200.0,0.00017414,2]
[398435231,1765653039659,-2875.74679559,0.0001742,2]
[398435232,1765653039675,-7086.6034147,0.00017437,2]
[398435233,1765653039690,-291.0,0.00017471,2]
[398435234,1765653039705,-420.0,0.00017476,2]
[398435235,1765653039720,-420.0,0.00017476,2]
[398435236,1765653039735,-195.0,0.00017481,2]
[398435237,1765653039750,-300.0,0.00017481,2]
[398435238,1765653039765,-250.0,0.00017481,2]
[398435239,1765653039781,-2500.0,0.00017481,2]
[398435240,1765653039796,-300.0,0.00017481,2]
[398435242,1765653039812,-300.0,0.00017481,2]
[398435245,1765653039827,-300.0,0.00017481,2]
[398435246,1765653039842,-300.0,0.00017481,2]
[398435248,1765653039858,-300.0,0.00017481,2]
[398435249,1765653039874,-250.0,0.00017481,2]
[398435250,1765653039889,-2500.0,0.00017481,2]
[398435251,1765653039904,-2500.0,0.00017481,2]
[398435252,1765653039920,-2500.0,0.00017481,2]
[398435253,1765653039934,-2500.0,0.00017481,2]
[398435254,1765653039950,-195.0,0.00017481,2]
[398435255,1765653039965,-2000.0,0.000175,2]
[398435256,1765653039980,-1500.0,0.000175,2]
[398435257,1765653039995,-500.0,0.00017508,2]
[398435258,1765653040010,-1000.0,0.00017521,2]
[398435259,1765653040024,-1000.0,0.00017521,2]
[398435260,1765653040039,-1000.0,0.00017521,2]
[398435261,1765653040054,-2875.74679559,0.0001754,2]
[398435262,1765653040070,-7086.6034147,0.00017553,2]
[398435263,1765653040085,-1680.0,0.00017564,2]
[398435264,1765653040101,-915.22,0.00017607,2]
[398435265,1765653040116,-150.0,0.0001764,2]
[398435266,1765653040131,-1710.18588949,0.0001764,2]
[398435267,1765653040146,-2875.74679559,0.0001766,2]
[398435268,1765653040161,-7086.6034147,0.00017669,2]
[398435269,1765653040177,-500.0,0.00017699,2]
[398435270,1765653040192,-150.0,0.00017699,2]
[398435271,1765653040207,-500.0,0.00017699,2]
[398435272,1765653040221,-500.0,0.00017699,2]
[398435273,1765653040236,-150.0,0.00017699,2]
[398435274,1765653040251,-150.0,0.00017699,2]
[398435275,1765653040266,-150.0,0.00017699,2]
[398435276,1765653040280,-150.0,0.00017699,2]
[398435277,1765653040295,-500.0,0.00017699,2]
[398435278,1765653040310,-150.0,0.00017699,2]
[398435279,1765653040325,-1115.0,0.00017699,2]
[398435280,1765653040339,-150.0,0.00017699,2]
[398435281,1765653040353,-500.0,0.00017699,2]
[398435282,1765653040371,-150.0,0.00017699,2]
[398435283,1765653040386,-150.0,0.000177,2]
[398435284,1765653040399,-147.07242672,0.000177,2]
[398435286,1765653040607,-2.92757328,0.000177,2]
[398435287,1765653040622,-1000.0,0.000177,2]
[398435288,1765653041024,-614.7274,0.000177,2]
[398435289,1765653041073,-1628.91162981,0.00017702,2]
[398435290,1765653041095,-150.99,0.00017728,2]
[398435291,1765653041105,-299.99,0.00017728,4]
[398435292,1765653041114,-64.02007828,0.00017728,2]